fUST/lending_fUST_20240713
["ID","MTS","AMOUNT","RATE_DAILY","PERIOD"]
[331913155,1720831844331,-557.83,0.00026027,2]
[331913156,1720831844341,-500.0,0.00026027,2]
[331913157,1720831844350,-500.0,0.00026027,2]
[331913158,1720831844359,-500.0,0.00026027,2]
[331913159,1720831844368,-500.0,0.00026027,2]
[331913160,1720831844378,-500.0,0.00026027,2]
[331913161,1720831844388,-500.0,0.00026027,2]
[331913162,1720831844397,-500.0,0.00026027,2]
[331913163,1720831844406,-500.0,0.00026027,2]
[331913164,1720831844415,-500.0,0.00026027,2]
[331913165,1720831844424,-387.17671969,0.00026027,2]
[331913166,1720831844434,-500.0,0.00026027,2]
[331913167,1720831844444,-500.0,0.00026027,2]
[331913168,1720831844454,-553.13508304,0.00026027,2]
[331913169,1720831844463,-500.0,0.00026027,2]
[331913170,1720831844473,-500.0,0.00026027,2]
[331913171,1720831844482,-597.11,0.00026027,2]
[331913172,1720831844492,-641.39485976,0.00026027,2]
[331913173,1720831844501,-500.0,0.00026027,2]
[331913174,1720831844510,-500.0,0.00026027,2]
[331913175,1720831844519,-500.0,0.00026027,2]
[331913176,1720831844529,-661.78,0.00026027,2]
[331913177,1720831844538,-500.0,0.00026027,2]
[331913178,1720831844547,-441.87920823,0.00026027,2]
[331913179,1720831844556,-500.0,0.00026027,2]
[331913180,1720831844565,-477.06665855,0.00026027,2]
[331913181,1720831844574,-500.0,0.00026027,2]
[331913182,1720831844583,-500.0,0.00026027,2]
[331913183,1720831844593,-500.0,0.00026027,2]
[331913184,1720831844602,-500.0,0.00026027,2]
[331913185,1720831844611,-500.0,0.00026027,2]
[331913186,1720831844620,-593.44,0.00026027,2]
[331913187,1720831844629,-603.66713942,0.00026027,2]
[331913188,1720831844638,-500.0,0.00026027,2]
[331913189,1720831844647,-1633.12,0.00026027,2]
[331913190,1720831844657,-500.0,0.00026027,2]
[331913191,1720831844666,-613.86644046,0.00026027,2]
[331913192,1720831844675,-315.87454827,0.00026027,2]
[331913193,1720831844684,-548.34,0.00026027,2]
[331913194,1720831844694,-20327.56,0.00026027,2]
[331913195,1720831844703,-454.58967797,0.00026027,2]
[331913196,1720831844713,-500.0,0.00026027,2]
[331913197,1720831844722,-2414.69,0.00026027,2]
[331913198,1720831844735,-500.0,0.00026027,2]
[331913199,1720831844744,-500.0,0.00026027,2]
[331913200,1720831844753,-500.0,0.00026027,2]
[331913201,1720831844763,-500.0,0.00026027,2]
[331913202,1720831844774,-500.0,0.00026027,2]
[331913203,1720831844784,-725.56,0.00026027,2]
[331913204,1720831844793,-500.0,0.00026027,2]
[331913205,1720831844804,-1154.89,0.00026027,2]
[331913206,1720831844814,-615.35842618,0.0002604,2]
[331913207,1720831844823,-495.04329148,0.00026056,2]
[331913208,1720831844834,-154.5944506,0.00026078,2]
[331913209,1720831844844,-495.04329148,0.00026159,2]
[331913210,1720831844854,-152.71751146,0.00026167,2]
[331913211,1720831844863,-178.12636697,0.00026172,2]
[331913212,1720831844872,-152.71751146,0.00026204,2]
[331913213,1720831844883,-1128.82339699,0.00026291,3]
[331913214,1720831844892,-529.93,0.000263,2]
[331913215,1720831844901,-168.13,0.00026301,2]
[331913216,1720831844911,-500.0,0.00026301,2]
[331913217,1720831844920,-599.87139088,0.00026301,2]
[331913218,1720831844929,-187.88935346,0.00026301,2]
[331913219,1720831844939,-500.0,0.00026301,2]
[331913220,1720831844948,-500.0,0.00026301,2]
[331913221,1720831844958,-500.0,0.00026301,2]
[331913222,1720831844967,-511.26441348,0.00026301,2]
[331913223,1720831844976,-500.0,0.00026301,2]
[331913224,1720831844986,-500.0,0.00026301,2]
[331913225,1720831844995,-501.31606615,0.00026301,2]
[331913226,1720831845005,-500.0,0.00026301,2]
[331913227,1720831845014,-597.11,0.00026301,2]
[331913228,1720831845024,-647.99534177,0.00026301,2]
[331913229,1720831845034,-407.80813858,0.00026301,2]
[331913230,1720831845043,-500.0,0.00026301,2]
[331913231,1720831845052,-661.78,0.00026301,2]
[331913232,1720831845061,-500.0,0.00026301,2]
[331913233,1720831845070,-500.0,0.00026301,2]
[331913234,1720831845079,-500.0,0.00026301,2]
[331913235,1720831845088,-500.0,0.00026301,2]
[331913236,1720831845097,-500.0,0.00026301,2]
[331913237,1720831845106,-273.29107678,0.00026301,2]
[331913238,1720831845115,-593.44,0.00026301,2]
[331913239,1720831845124,-500.0,0.00026301,2]
[331913240,1720831845135,-1633.12,0.00026301,2]
[331913241,1720831845145,-500.0,0.00026301,2]
[331913242,1720831845154,-548.34,0.00026301,2]
[331913243,1720831845164,-20327.56,0.00026301,2]
[331913244,1720831845173,-2414.69,0.00026301,2]
[331913245,1720831845183,-297.38530946,0.00026301,2]
[331913246,1720831845192,-500.0,0.00026301,2]
[331913247,1720831845202,-500.0,0.00026301,2]
[331913248,1720831845211,-500.0,0.00026301,2]
[331913249,1720831845221,-725.56,0.00026301,2]
[331913250,1720831845230,-500.0,0.00026301,2]
[331913251,1720831845239,-1154.89,0.00026301,2]
[331913252,1720831845250,-615.35842618,0.00026316,2]
[331913253,1720831845259,-178.12636697,0.00026339,2]
[331913254,1720831845269,-154.5944506,0.00026355,2]
[331913255,1720831845279,-615.35842618,0.00026365,2]
[331913257,1720831845288,-615.35842618,0.0002638,2]
[331913259,1720831845297,-150.0,0.00026444,2]
[331913260,1720831845306,-1406.0,0.00026444,2]
[331913262,1720831845316,-3000.0,0.000265,2]
[331913263,1720831845326,-3000.0,0.0002651,2]
[331913265,1720831845336,-3000.0,0.0002652,2]
[331913267,1720831845345,-3000.0,0.0002653,2]
[331913269,1720831845355,-151.0,0.0002653,7]
[331913271,1720831845364,-706.114367,0.0002653,7]
[331913272,1720831845374,-706.114367,0.0002653,7]
[331913274,1720831845384,-3000.0,0.0002654,2]
[331913276,1720831845393,-4175.586431,0.0002655,2]
[331913277,1720831845403,-151.0,0.0002655,7]
[331913278,1720831845413,-615.35842618,0.00026557,2]
[331913279,1720831845423,-1128.82339699,0.00026565,3]
[331913280,1720831845434,-529.93,0.00026574,2]
[331913281,1720831845445,-154.74847446,0.00026574,2]
[331913282,1720831845455,-500.0,0.00026575,2]
[331913283,1720831845464,-500.0,0.00026575,2]
[331913284,1720831845473,-500.0,0.00026575,2]
[331913285,1720831845482,-500.0,0.00026575,2]
[331913287,1720831845492,-500.0,0.00026575,2]
[331913289,1720831845501,-500.0,0.00026575,2]
[331913291,1720831845512,-500.0,0.00026575,2]
[331913293,1720831845521,-597.11,0.00026575,2]
[331913294,1720831845532,-500.0,0.00026575,2]
[331913296,1720831845542,-661.78,0.00026575,2]
[331913298,1720831845551,-500.0,0.00026575,2]
[331913299,1720831845560,-151.0,0.00026575,7]
[331913300,1720831845570,-175.254618,0.00026575,7]
[331913301,1720831845580,-360.664519,0.00026575,7]
[331913302,1720831845591,-360.664519,0.00026575,7]
[331913303,1720831845601,-278.894269,0.00026575,4]
[331913304,1720831845612,-208.80140146,0.00026575,2]
[331913305,1720831845622,-500.0,0.00026575,2]
[331913306,1720831845632,-500.0,0.00026575,2]
[331913307,1720831845643,-500.0,0.00026575,2]
[331913308,1720831845652,-593.44,0.00026575,2]
[331913309,1720831845663,-500.0,0.00026575,2]
[331913310,1720831845672,-1633.12,0.00026575,2]
[331913311,1720831845683,-500.0,0.00026575,2]
[331913312,1720831845693,-270.363198,0.00026575,7]
[331913313,1720831845705,-151.0,0.00026575,7]
[331913314,1720831845717,-151.0,0.00026575,7]
[331913315,1720831845732,-151.0,0.00026575,7]
[331913316,1720831845741,-151.0,0.00026575,7]
[331913318,1720831845751,-151.0,0.00026575,7]
[331913319,1720831845760,-548.34,0.00026575,2]
[331913320,1720831845770,-20327.56,0.00026575,2]
[331913321,1720831845780,-2414.69,0.00026575,2]
[331913322,1720831845790,-500.0,0.00026575,2]
[331913323,1720831845800,-527.62,0.00026575,2]
[331913324,1720831845813,-500.0,0.00026575,2]
[331913325,1720831845824,-725.56,0.00026575,2]
[331913326,1720831845835,-500.0,0.00026575,2]
[331913327,1720831845846,-1154.89,0.00026575,2]
[331913328,1720831845857,-154.5944506,0.00026609,2]
[331913329,1720831845867,-152.71751146,0.00026625,2]
[331913330,1720831845877,-157.95591486,0.00026657,2]
[331913331,1720831845886,-157.95591486,0.00026668,2]
[331913332,1720831845896,-150.42453829,0.00026705,2]
[331913333,1720831845908,-495.04329148,0.00026778,2]
[331913335,1720831845918,-1128.82339699,0.00026839,3]
[331913336,1720831845930,-529.93,0.00026848,2]
[331913337,1720831845941,-156.42124676,0.00026848,2]
[331913338,1720831845951,-318.92327881,0.00026848,2]
[331913339,1720831845960,-284.29594661,0.00026849,2]
[331913340,1720831845970,-500.0,0.00026849,2]
[331913341,1720831845979,-500.0,0.00026849,2]
[331913342,1720831845989,-500.0,0.00026849,2]
[331913343,1720831845998,-500.0,0.00026849,2]
[331913344,1720831846007,-511.18,0.00026849,2]
[331913345,1720831846017,-500.0,0.00026849,2]
[331913346,1720831846027,-165.32166047,0.00026849,2]
[331913347,1720831846037,-597.11,0.00026849,2]
[331913348,1720831846046,-559.86,0.00026849,2]
[331913349,1720831846055,-661.78,0.00026849,2]
[331913350,1720831846064,-500.0,0.00026849,2]
[331913351,1720831846073,-500.0,0.00026849,2]
[331913352,1720831846082,-500.0,0.00026849,2]
[331913353,1720831846092,-482.06938311,0.00026849,2]
[331913354,1720831846101,-593.44,0.00026849,2]
[331913355,1720831846111,-500.0,0.00026849,2]
[331913356,1720831846121,-1633.12,0.00026849,2]
[331913357,1720831846131,-500.0,0.00026849,2]
[331913358,1720831846141,-548.34,0.00026849,2]
[331913359,1720831846150,-20327.56,0.00026849,2]
[331913360,1720831846160,-2414.69,0.00026849,2]
[331913361,1720831846169,-500.0,0.00026849,2]
[331913362,1720831846179,-419.85657201,0.00026849,2]
[331913363,1720831846189,-725.56,0.00026849,2]
[331913364,1720831846199,-500.0,0.00026849,2]
[331913365,1720831846208,-1154.89,0.00026849,2]
[331913366,1720831846218,-150.42453829,0.00026865,2]
[331913367,1720831846226,-153.79107762,0.00026883,2]
[331913368,1720831846235,-178.12636697,0.00026935,2]
[331913369,1720831846245,-495.04329148,0.00026963,2]
[331913370,1720831846255,-157.95591486,0.00026971,2]
[331913371,1720831846265,-150.79426912,0.00027004,2]
[331913372,1720831846277,-150.42453829,0.00027008,2]
[331913373,1720831846286,-154.5944506,0.00027071,2]
[331913374,1720831846296,-238.68124308,0.00027092,2]
[331913375,1720831846308,-1128.82339699,0.00027113,3]
[331913376,1720831846317,-615.35842618,0.00027114,2]
[331913377,1720831846327,-529.93,0.00027122,2]
[331913378,1720831846337,-500.0,0.00027123,2]
[331913379,1720831846346,-500.0,0.00027123,2]
[331913380,1720831846355,-500.0,0.00027123,2]
[331913381,1720831846364,-500.0,0.00027123,2]
[331913382,1720831846374,-500.0,0.00027123,2]
[331913383,1720831846384,-597.11,0.00027123,2]
[331913384,1720831846394,-661.78,0.00027123,2]
[331913385,1720831846404,-500.0,0.00027123,2]
[331913386,1720831846414,-500.0,0.00027123,2]
[331913387,1720831846423,-593.44,0.00027123,2]
[331913388,1720831846433,-500.0,0.00027123,2]
[331913389,1720831846443,-1633.12,0.00027123,2]
[331913390,1720831846452,-611.35946408,0.00027123,2]
[331913391,1720831846462,-548.34,0.00027123,2]
[331913392,1720831846471,-20327.56,0.00027123,2]
[331913393,1720831846481,-2414.69,0.00027123,2]
[331913394,1720831846490,-500.0,0.00027123,2]
[331913395,1720831846500,-725.56,0.00027123,2]
[331913396,1720831846509,-500.0,0.00027123,2]
[331913397,1720831846518,-1154.89,0.00027123,2]
[331913398,1720831846529,-168.9575777,0.00027123,2]
[331913399,1720831846539,-150.42453829,0.00027143,2]
[331913400,1720831846548,-495.04329148,0.00027155,2]
[331913401,1720831846558,-150.42453829,0.00027157,2]
[331913402,1720831846567,-154.5944506,0.00027169,2]
[331913403,1720831846576,-151.0,0.00027184,7]
[331913404,1720831846585,-151.0,0.00027184,7]
[331913405,1720831846594,-383.359133,0.00027195,2]
[331913406,1720831846603,-615.35842618,0.00027217,2]
[331913407,1720831846612,-157.95591486,0.00027232,2]
[331913408,1720831846621,-495.04329148,0.00027281,2]
[331913409,1720831846631,-157.95591486,0.00027339,2]
[331913410,1720831846640,-154.5944506,0.0002734,2]
[331913411,1720831846650,-151.0,0.00027347,2]
[331913412,1720831846659,-151.0,0.00027347,2]
[331913413,1720831846669,-495.04329148,0.0002735,2]
[331913414,1720831846678,-1128.82339699,0.00027387,3]
[331913415,1720831846687,-154.5944506,0.00027394,2]
[331913416,1720831846697,-529.93,0.00027396,2]
[331913417,1720831846707,-500.0,0.00027397,2]
[331913418,1720831846717,-500.0,0.00027397,2]
[331913419,1720831846728,-500.0,0.00027397,2]
[331913420,1720831846738,-500.0,0.00027397,2]
[331913421,1720831846748,-500.0,0.00027397,2]
[331913422,1720831846758,-500.0,0.00027397,2]
[331913423,1720831846767,-500.0,0.00027397,2]
[331913424,1720831846778,-500.0,0.00027397,2]
[331913425,1720831846788,-500.0,0.00027397,2]
[331913426,1720831846797,-500.0,0.00027397,2]
[331913427,1720831846904,-500.0,0.00027397,2]
[331913428,1720831846914,-500.0,0.00027397,2]
[331913429,1720831846925,-500.0,0.00027397,2]
[331913430,1720831846935,-500.0,0.00027397,2]
[331913431,1720831846944,-500.0,0.00027397,2]
[331913432,1720831846954,-500.0,0.00027397,2]
[331913433,1720831846963,-500.0,0.00027397,2]
[331913434,1720831846973,-500.0,0.00027397,2]
[331913435,1720831846984,-500.0,0.00027397,2]
[331913436,1720831846994,-500.0,0.00027397,2]
[331913437,1720831847004,-500.0,0.00027397,2]
[331913438,1720831847016,-500.0,0.00027397,2]
[331913439,1720831847028,-500.0,0.00027397,2]
[331913440,1720831847039,-500.0,0.00027397,2]
[331913441,1720831847048,-500.0,0.00027397,2]
[331913442,1720831847057,-500.0,0.00027397,2]
[331913443,1720831847066,-500.0,0.00027397,2]
[331913444,1720831847075,-567.63927348,0.00027397,2]
[331913445,1720831847084,-500.0,0.00027397,2]
[331913446,1720831847093,-329.58069575,0.00027397,2]
[331913447,1720831847102,-500.0,0.00027397,2]
[331913448,1720831847112,-500.0,0.00027397,2]
[331913449,1720831847121,-500.0,0.00027397,2]
[331913450,1720831847130,-500.0,0.00027397,2]
[331913451,1720831847140,-597.11,0.00027397,2]
[331913452,1720831847149,-151.0,0.00027397,7]
[331913453,1720831847158,-661.78,0.00027397,2]
[331913454,1720831847167,-500.0,0.00027397,2]
[331913455,1720831847177,-511.57,0.00027397,2]
[331913456,1720831847187,-511.57,0.00027397,2]
[331913457,1720831847196,-511.57,0.00027397,2]
[331913458,1720831847205,-511.57,0.00027397,2]
[331913459,1720831847214,-511.57,0.00027397,2]
[331913460,1720831847223,-511.57,0.00027397,2]
[331913461,1720831847233,-511.57,0.00027397,2]
[331913462,1720831847242,-511.57,0.00027397,2]
[331913463,1720831847251,-511.57,0.00027397,2]
[331913464,1720831847260,-511.57,0.00027397,2]
[331913465,1720831847270,-511.57,0.00027397,2]
[331913466,1720831847279,-500.0,0.00027397,2]
[331913467,1720831847290,-593.44,0.00027397,2]
[331913468,1720831847300,-500.0,0.00027397,2]
[331913469,1720831847310,-1633.12,0.00027397,2]
[331913470,1720831847319,-151.0,0.00027397,7]
[331913471,1720831847329,-151.0,0.00027397,7]
[331913472,1720831847339,-151.0,0.00027397,7]
[331913473,1720831847349,-151.0,0.00027397,7]
[331913474,1720831847360,-151.0,0.00027397,7]
[331913475,1720831847371,-548.34,0.00027397,2]
[331913476,1720831847381,-20327.56,0.00027397,2]
[331913477,1720831847391,-2414.69,0.00027397,2]
[331913478,1720831847400,-500.0,0.00027397,2]
[331913479,1720831847410,-725.56,0.00027397,2]
[331913480,1720831847419,-706.114367,0.00027397,7]
[331913481,1720831847429,-161.656779,0.00027397,7]
[331913482,1720831847439,-706.114367,0.00027397,7]
[331913483,1720831847450,-500.0,0.00027397,2]
[331913484,1720831847460,-1154.89,0.00027397,2]
[331913485,1720831847469,-611.0,0.000274,2]
[331913486,1720831847479,-167.21919922,0.00027419,2]
[331913487,1720831847490,-153.29155785,0.00027448,2]
[331913488,1720831847500,-178.12636697,0.00027459,2]
[331913489,1720831847510,-154.5944506,0.00027459,2]
[331913490,1720831847520,-529.93,0.00027459,2]
[331913491,1720831847531,-495.04329148,0.0002746,2]
[331913492,1720831847541,-151.0,0.00027517,4]
[331913493,1720831847551,-154.5944506,0.00027595,2]
[331913494,1720831847562,-495.04329148,0.00027621,2]
[331913495,1720831847572,-151.0,0.00027655,2]
[331913496,1720831847582,-151.0,0.00027655,2]
[331913497,1720831847592,-1128.82339699,0.00027661,3]
[331913498,1720831847602,-500.0,0.00027671,2]
[331913499,1720831847612,-500.0,0.00027671,2]
[331913500,1720831847622,-500.0,0.00027671,2]
[331913501,1720831847635,-151.0,0.00027671,7]
[331913502,1720831847644,-151.0,0.00027671,7]
[331913503,1720831847654,-500.0,0.00027671,2]
[331913504,1720831847664,-597.11,0.00027671,2]
[331913505,1720831847673,-661.78,0.00027671,2]
[331913506,1720831847683,-500.0,0.00027671,2]
[331913507,1720831847693,-360.664519,0.00027671,7]
[331913508,1720831847703,-511.57,0.00027671,2]
[331913509,1720831847713,-360.664519,0.00027671,7]
[331913510,1720831847723,-500.0,0.00027671,2]
[331913511,1720831847737,-593.44,0.00027671,2]
[331913512,1720831847747,-500.0,0.00027671,2]
[331913513,1720831847758,-1633.12,0.00027671,2]
[331913514,1720831847768,-548.34,0.00027671,2]
[331913515,1720831847781,-20327.56,0.00027671,2]
[331913516,1720831847791,-2414.69,0.00027671,2]
[331913517,1720831847801,-588.43463907,0.00027671,2]
[331913518,1720831847813,-725.56,0.00027671,2]
[331913519,1720831847824,-500.0,0.00027671,2]
[331913520,1720831847834,-1154.89,0.00027671,2]
[331913521,1720831847845,-150.79426912,0.00027736,2]
[331913522,1720831847856,-154.5944506,0.00027747,2]
[331913523,1720831847866,-495.04329148,0.00027759,2]
[331913524,1720831847875,-154.5944506,0.00027821,2]
[331913525,1720831847884,-495.04329148,0.00027858,2]
[331913526,1720831847894,-1378.57404341,0.000279,2]
[331913527,1720831847904,-495.04329148,0.00027906,2]
[331913528,1720831847914,-529.93,0.00027909,2]
[331913529,1720831847923,-151.0,0.00027938,2]
[331913530,1720831847932,-157.95591486,0.00027944,2]
[331913531,1720831847942,-151.0,0.00027945,7]
[331913532,1720831847953,-500.0,0.00027945,2]
[331913533,1720831847962,-500.0,0.00027945,2]
[331913534,1720831847971,-151.0,0.00027945,2]
[331913535,1720831847981,-151.0,0.00027945,7]
[331913536,1720831847990,-500.0,0.00027945,2]
[331913537,1720831847999,-500.0,0.00027945,2]
[331913538,1720831848009,-597.11,0.00027945,2]
[331913539,1720831848018,-661.78,0.00027945,2]
[331913540,1720831848028,-500.0,0.00027945,2]
[331913541,1720831848037,-511.57,0.00027945,2]
[331913542,1720831848047,-500.0,0.00027945,2]
[331913543,1720831848057,-593.44,0.00027945,2]
[331913544,1720831848067,-500.0,0.00027945,2]
[331913545,1720831848078,-1633.12,0.00027945,2]
[331913546,1720831848088,-548.34,0.00027945,2]
[331913547,1720831848098,-20327.56,0.00027945,2]
[331913548,1720831848109,-2414.69,0.00027945,2]
[331913549,1720831848119,-725.56,0.00027945,2]
[331913550,1720831848128,-500.0,0.00027945,2]
[331913551,1720831848138,-1154.89,0.00027945,2]
[331913552,1720831848147,-151.0,0.00027962,2]
[331913553,1720831848157,-151.0,0.00027962,2]
[331913554,1720831848167,-1128.82339699,0.0002798,3]
[331913555,1720831848177,-529.93,0.00027989,2]
[331913556,1720831848186,-8249.40740869,0.0002799,2]
[331913557,1720831848196,-12132.16383712,0.00028,30]
[331913558,1720831848206,-151.0,0.00028,7]
[331913559,1720831848215,-151.0,0.00028,2]
[331913560,1720831848225,-1818.41690417,0.00028,2]
[331913561,1720831848234,-151.0,0.00028045,7]
[331913562,1720831848243,-153.79107762,0.00028061,2]
[331913563,1720831848252,-615.35842618,0.00028125,2]
[331913564,1720831848261,-1128.82339699,0.00028209,3]
[331913565,1720831848271,-529.93,0.00028218,2]
[331913566,1720831848280,-529.93,0.00028218,2]
[331913567,1720831848291,-529.93,0.00028218,2]
[331913568,1720831848300,-529.93,0.00028218,2]
[331913569,1720831848310,-530.0206073,0.00028218,2]
[331913570,1720831848319,-500.0,0.00028219,2]
[331913571,1720831848329,-500.0,0.00028219,2]
[331913572,1720831848338,-331.41184938,0.00028219,2]
[331913573,1720831848347,-500.0,0.00028219,2]
[331913574,1720831848356,-597.11,0.00028219,2]
[331913575,1720831848365,-661.78,0.00028219,2]
[331913576,1720831848374,-500.0,0.00028219,2]
[331913577,1720831848384,-511.57,0.00028219,2]
[331913578,1720831848393,-500.0,0.00028219,2]
[331913579,1720831848402,-593.44,0.00028219,2]
[331913580,1720831848411,-432.81561678,0.00028219,2]
[331913581,1720831848421,-1633.12,0.00028219,2]
[331913582,1720831848431,-548.34,0.00028219,2]
[331913583,1720831848441,-2920.86939301,0.00028219,2]
[331913584,1720831848622,-500.0,0.00024657,2]
[331913585,1720831848633,-500.0,0.00024657,2]
[331913586,1720831848642,-500.0,0.00024931,2]
[331913587,1720831848652,-500.0,0.00025205,2]
[331913588,1720831848661,-156.42124676,0.00026574,2]
[331913589,1720831848671,-17406.69060699,0.00028219,2]
[331913590,1720831848680,-2414.69,0.00028219,2]
[331913591,1720831848690,-725.56,0.00028219,2]
[331913592,1720831848699,-706.114367,0.00028219,7]
[331913593,1720831848709,-706.114367,0.00028219,7]
[331913594,1720831848719,-500.0,0.00028219,2]
[331913595,1720831848731,-1154.89,0.00028219,2]
[331913596,1720831848740,-178.12636697,0.00028221,2]
[331913597,1720831848749,-150.42453829,0.00028223,2]
[331913598,1720831848759,-178.12636697,0.00028254,2]
[331913599,1720831848768,-153.79107762,0.00028256,2]
[331913600,1720831848779,-151.0,0.0002827,3]
[331913601,1720831848789,-151.0,0.0002827,3]
[331913602,1720831848798,-160.0,0.00028288,5]
[331913603,1720831848811,-197.7597611,0.00028304,2]
[331913604,1720831849019,-2.57589076,0.00024657,2]
[331913625,1720832737960,980.77879208,0.00016255,2]
[331913627,1720832765268,238.68124308,0.00016255,2]
[331913628,1720832951402,-498.36235744,0.000189,2]
[331913629,1720832951430,-197.41006228,0.00019165,2]
[331913630,1720832951455,-530.20355034,0.00019165,2]
[331913631,1720832951478,-294.04812155,0.00019165,2]
[331913632,1720832951498,-300.0,0.00019702,2]
[331913633,1720832951520,-300.0,0.00019702,2]
[331913634,1720832951542,-583.63458822,0.00019703,2]
[331913635,1720832951563,-187.84280407,0.00019703,2]
[331913636,1720832951585,-725.71765032,0.00019703,2]
[331913637,1720832951606,-487.61165217,0.00019703,2]
[331913638,1720832951630,-1424.0725722,0.00019703,2]
[331913639,1720832961134,-268.27331898,0.00019165,2]
[331913640,1720832961156,-1140.44295447,0.00019703,2]
[331913641,1720832961177,-364.191177,0.00021096,2]
[331913642,1720832961197,-174.985801,0.00022911,2]
[331913643,1720832961219,-8150.2260631,0.00023183,2]
[331913646,1720832976407,-406.1224554,0.00023183,2]
[331913702,1720833032312,-16333.6514815,0.00023183,2]
[331913704,1720833032323,-159.666389,0.00023258,2]
[331913706,1720833032333,-495.57102894,0.00023882,2]
[331913708,1720833032344,-498.36235744,0.000239,2]
[331913710,1720833032354,-156.42124676,0.00023966,2]
[331913712,1720833032364,-579.85391068,0.00024557,2]
[331913714,1720833032374,-1270.42645534,0.00024557,2]
[331913716,1720833032384,-1072.38222714,0.00024647,3]
[331913718,1720833032394,-764.26991272,0.00024657,2]
[331913720,1720833032403,-500.0,0.00024657,2]
[331913722,1720833032417,-500.0,0.00024657,2]
[331913724,1720833032427,-500.0,0.00024657,2]
[331913726,1720833032437,-500.0,0.00024657,2]
[331913728,1720833032447,-500.0,0.00024657,2]
[331913730,1720833032456,-500.0,0.00024657,2]
[331913732,1720833032466,-500.0,0.00024657,2]
[331913734,1720833032477,-500.0,0.00024657,2]
[331913736,1720833032489,-500.0,0.00024657,2]
[331913738,1720833032499,-500.0,0.00024657,2]
[331913740,1720833032508,-500.0,0.00024657,2]
[331913742,1720833032518,-500.0,0.00024657,2]
[331913743,1720833032527,-500.0,0.00024657,2]
[331913744,1720833032537,-500.0,0.00024657,2]
[331913745,1720833032546,-500.0,0.00024657,2]
[331913746,1720833032556,-500.0,0.00024657,2]
[331913747,1720833032566,-500.0,0.00024657,2]
[331913748,1720833032576,-500.0,0.00024657,2]
[331913749,1720833032585,-170.27248531,0.00024657,2]
[331913750,1720833032599,-329.72751469,0.00024657,2]
[331913751,1720833032609,-270.05436955,0.00024657,2]
[331913762,1720833038449,-229.94563045,0.00024657,2]
[331913764,1720833038459,-500.0,0.00024657,2]
[331913766,1720833038469,-500.0,0.00024657,2]
[331913768,1720833038478,-500.0,0.00024657,2]
[331913770,1720833038489,-500.0,0.00024657,2]
[331913772,1720833038499,-500.0,0.00024657,2]
[331913773,1720833038509,-500.0,0.00024657,2]
[331913774,1720833038518,-500.0,0.00024657,2]
[331913775,1720833038527,-500.0,0.00024657,2]
[331913776,1720833038537,-1500.0,0.00024657,2]
[331913777,1720833038547,-500.0,0.00024657,2]
[331913778,1720833038559,-500.0,0.00024657,2]
[331913779,1720833038570,-341.36206782,0.00024657,2]
[331913780,1720833038580,-500.0,0.00024657,2]
[331913781,1720833038590,-500.0,0.00024657,2]
[331913782,1720833038601,-500.0,0.00024657,2]
[331913783,1720833038612,-500.0,0.00024657,2]
[331913784,1720833038624,-500.0,0.00024657,2]